fUSD/lending_fUSD_20240823
["ID","MTS","AMOUNT","RATE_DAILY","PERIOD"]
[335682721,1724425832451,-218.93,0.00010029,2]
[335682722,1724425832460,-1000.0,0.00010237,2]
[335682723,1724425832470,-200.0,0.00010237,2]
[335682724,1724425832479,-196.61,0.00010473,2]
[335682725,1724425832489,-1526.96010729,0.00010505,2]
[335682726,1724425832498,-300.0,0.00010511,2]
[335682727,1724425832508,-300.0,0.00010511,2]
[335682728,1724425832517,-3590.148019,0.00010512,2]
[335682729,1724425832527,-179.99,0.00010645,2]
[335682730,1724425832536,-499.99,0.00010852,2]
[335682731,1724425832546,-6593.71,0.00010879,2]
[335682732,1724425832556,-150.0,0.00010879,2]
[335682733,1724425832566,-500.0,0.0001088,2]
[335682734,1724425832575,-3738.4763,0.0001088,2]
[335682735,1724425832584,-1214.3733,0.0001088,2]
[335682736,1724425832594,-7461.5269,0.0001088,2]
[335682737,1724425832603,-17689.65835276,0.00010889,2]
[335682738,1724425832613,-299.99,0.0001089,2]
[335682739,1724425832622,-5707.3055,0.00010899,2]
[335682740,1724425832631,-22275.83384489,0.00010899,2]
[335682741,1724425832643,-2726.451,0.000109,2]
[335682742,1724425832654,-2173.9942,0.000109,2]
[335682743,1724425832664,-7500.0,0.000109,2]
[335682744,1724425832673,-158.56744269,0.000109,2]
[335682745,1724425832683,-166.39250321,0.000109,2]
[335682746,1724425832692,-1187.0,0.000109,2]
[335682747,1724425832702,-426.87,0.000109,2]
[335682748,1724425832711,-1148.82194674,0.000109,2]
[335682749,1724425832720,-1077.59402565,0.000109,2]
[335682750,1724425832730,-7178.93471731,0.000109,2]
[335682751,1724425832739,-168.26330187,0.000109,2]
[335682752,1724425832748,-500.0,0.00010912,2]
[335682753,1724425832758,-859.12301,0.0001094,2]
[335682754,1724425832768,-531.26864504,0.00010949,2]
[335682755,1724425832778,-8835.24674774,0.0001095,2]
[335682756,1724425832787,-200.0,0.00010959,2]
[335682757,1724425832796,-167.92,0.00010959,2]
[335682758,1724425832805,-2700.0,0.0001096,2]
[335682759,1724425832815,-2400.0,0.0001096,2]
[335682760,1724425832824,-809.87,0.00010979,2]
[335682761,1724425832833,-357.73093582,0.00010989,2]
[335682762,1724425832842,-449.194,0.0001099,2]
[335682763,1724425832851,-1414.61742938,0.0001099,2]
[335682764,1724425832861,-150.86,0.0001099,2]
[335682765,1724425832870,-150.86,0.0001099,2]
[335682766,1724425832879,-150.86,0.0001099,2]
[335682767,1724425832888,-150.86,0.0001099,2]
[335682768,1724425832901,-150.86,0.0001099,2]
[335682769,1724425832910,-150.86,0.0001099,2]
[335682770,1724425832919,-150.86,0.0001099,2]
[335682771,1724425832929,-1414.61742938,0.0001099,2]
[335682772,1724425832939,-1414.61742938,0.0001099,2]
[335682773,1724425832948,-150.86,0.0001099,2]
[335682774,1724425832957,-150.86,0.0001099,2]
[335682775,1724425832966,-150.86,0.0001099,2]
[335682776,1724425832976,-150.86,0.0001099,2]
[335682777,1724425832985,-150.86,0.0001099,2]
[335682778,1724425832995,-150.86,0.0001099,2]
[335682780,1724425833005,-150.86,0.0001099,2]
[335682781,1724425833014,-150.86,0.0001099,2]
[335682783,1724425833023,-150.86,0.0001099,2]
[335682785,1724425833032,-150.86,0.0001099,2]
[335682786,1724425833042,-150.86,0.0001099,2]
[335682788,1724425833051,-150.86,0.0001099,2]
[335682790,1724425833061,-150.86,0.0001099,2]
[335682792,1724425833071,-150.86,0.0001099,2]
[335682793,1724425833081,-150.86,0.0001099,2]
[335682795,1724425833090,-150.86,0.0001099,2]
[335682797,1724425833100,-150.86,0.0001099,2]
[335682799,1724425833110,-150.86,0.0001099,2]
[335682800,1724425833119,-150.86,0.0001099,2]
[335682802,1724425833129,-150.86,0.0001099,2]
[335682818,1724425833336,-150.86,0.0001099,2]
[335682819,1724425833346,-150.86,0.0001099,2]
[335682820,1724425833356,-150.86,0.0001099,2]
[335682821,1724425833366,-150.86,0.0001099,2]
[335682822,1724425833376,-150.86,0.0001099,2]
[335682823,1724425833386,-150.86,0.0001099,2]
[335682824,1724425833399,-150.86,0.0001099,2]
[335682825,1724425833409,-150.86,0.0001099,2]
[335682826,1724425833419,-150.86,0.0001099,2]
[335682827,1724425833429,-150.86,0.0001099,2]
[335682828,1724425833439,-150.86,0.0001099,2]
[335682829,1724425833450,-150.86,0.0001099,2]
[335682830,1724425833460,-150.86,0.0001099,2]
[335682831,1724425833470,-150.86,0.0001099,2]
[335682832,1724425833480,-150.86,0.0001099,2]
[335682833,1724425833490,-150.86,0.0001099,2]
[335682834,1724425833500,-150.86,0.0001099,2]
[335682835,1724425833510,-150.86,0.0001099,2]
[335682836,1724425833520,-150.86,0.0001099,2]
[335682837,1724425833529,-150.86,0.0001099,2]
[335682838,1724425833538,-150.86,0.0001099,2]
[335682839,1724425833548,-150.86,0.0001099,2]
[335682840,1724425833557,-150.86,0.0001099,2]
[335682841,1724425833567,-150.86,0.0001099,2]
[335682842,1724425833577,-150.86,0.0001099,2]
[335682843,1724425833587,-150.86,0.0001099,2]
[335682844,1724425833597,-150.86,0.0001099,2]
[335682845,1724425833606,-150.86,0.0001099,2]
[335682846,1724425833615,-150.86,0.0001099,2]
[335682847,1724425833624,-500.0,0.00010995,2]
[335682849,1724425833633,-500.0,0.00010995,2]
[335682850,1724425833644,-500.0,0.00010995,2]
[335682851,1724425833654,-449.26208106,0.00010996,2]
[335682853,1724425833664,-809.87,0.00010996,2]
[335682854,1724425833674,-500.0,0.00010996,2]
[335682856,1724425833684,-500.0,0.00010996,2]
[335682858,1724425833694,-500.0,0.00010996,2]
[335682860,1724425833703,-500.0,0.00010996,2]
[335682862,1724425833713,-166.71147448,0.00010997,2]
[335682864,1724425833723,-500.0,0.00010997,2]
[335682865,1724425833732,-500.0,0.00010997,2]
[335682867,1724425833741,-500.0,0.00010997,2]
[335682869,1724425833751,-365.2322078,0.00010997,2]
[335682871,1724425833763,-809.87,0.00010997,2]
[335682873,1724425833772,-11997.9049485,0.00010997,2]
[335682875,1724425833782,-500.0,0.00010997,2]
[335682877,1724425833792,-4361.633312,0.00010997,2]
[335682880,1724425833802,-31455.3870167,0.00010997,2]
[335682882,1724425833811,-500.0,0.00010997,2]
[335682883,1724425833822,-809.87,0.00010998,2]
[335682885,1724425833832,-809.87,0.00010998,2]
[335682888,1724425833842,-809.87,0.00010998,2]
[335682889,1724425833852,-809.87,0.00010998,2]
[335682891,1724425833861,-714.06444455,0.00010998,2]
[335682894,1724425833875,-95.80555545,0.00010998,2]
[335682896,1724425833885,-271.64234473,0.00010998,2]
[335682898,1724425833897,-500.0,0.00010998,2]
[335682899,1724425833912,-500.0,0.00010998,2]
[335682902,1724425833922,-500.0,0.00010998,2]
[335682903,1724425833931,-500.0,0.00010998,2]
[335682905,1724425833941,-500.0,0.00010998,2]
[335682907,1724425833951,-500.0,0.00010998,2]
[335682909,1724425833961,-318.75,0.00010998,2]
[335682911,1724425833972,-500.0,0.00010998,2]
[335682913,1724425833982,-218.40329671,0.00010999,2]
[335682915,1724425833991,-433.47869488,0.00010999,2]
[335682917,1724425834001,-1031.54405098,0.00010999,3]
[335682919,1724425834011,-1031.54405097,0.00010999,3]
[335682921,1724425834021,-500.0,0.00010999,2]
[335682923,1724425834031,-500.0,0.00010999,2]
[335682925,1724425834040,-500.0,0.00010999,2]
[335682927,1724425834050,-500.0,0.00010999,2]
[335682929,1724425834059,-302.8622702,0.00010999,2]
[335682931,1724425834069,-164.21028516,0.00010999,2]
[335682933,1724425834078,-500.0,0.00010999,2]
[335682934,1724425834087,-276.3545858,0.00010999,2]
[335682935,1724425834096,-316.70496651,0.00010999,2]
[335682936,1724425834107,-809.87,0.00010999,2]
[335682937,1724425834116,-809.87,0.00010999,2]
[335682938,1724425834126,-21.03535798,0.00010999,2]
[335682939,1724425834138,-788.83464202,0.00010999,2]
[335682940,1724425834152,-809.87,0.00010999,2]
[335682941,1724425834162,-809.87,0.00010999,2]
[335682942,1724425834171,-809.87,0.00010999,2]
[335682943,1724425834181,-809.87,0.00010999,2]
[335682944,1724425834191,-809.87,0.00010999,2]
[335682945,1724425834201,-809.87,0.00010999,2]
[335682946,1724425834210,-809.87,0.00010999,2]
[335682947,1724425834220,-809.87,0.00010999,2]
[335682948,1724425834232,-809.87,0.00010999,2]
[335682949,1724425834242,-809.87,0.00010999,2]
[335682950,1724425834251,-809.87,0.00010999,2]
[335682951,1724425834260,-809.87,0.00010999,2]
[335682952,1724425834269,-810.01,0.00010999,2]
[335682953,1724425834279,-500.0,0.00010999,2]
[335682954,1724425834289,-500.0,0.00010999,2]
[335682955,1724425834299,-500.0,0.00010999,2]
[335682956,1724425834309,-500.0,0.00010999,2]
[335682957,1724425834319,-207.52,0.00010999,2]
[335682958,1724425834329,-500.0,0.00010999,2]
[335682959,1724425834338,-350.0,0.00010999,2]
[335682960,1724425834348,-77.19535798,0.00010999,2]
[335682961,1724425834360,-422.80464202,0.00010999,2]
[335682962,1724425834370,-500.0,0.00010999,2]
[335682963,1724425834379,-489.72388952,0.00010999,2]
[335682964,1724425834411,-10.27611048,0.00010999,2]
[335682965,1724425834421,-500.0,0.00010999,2]
[335682966,1724425834430,-26.55957367,0.00010999,2]
[335682967,1724425834442,-473.44042633,0.00010999,2]
[335682968,1724425834452,-237.57076055,0.00010999,2]
[335682969,1724425834464,-262.42923945,0.00010999,2]
[335682970,1724425834473,-521.08,0.00010999,2]
[335682971,1724425834483,-500.0,0.00010999,2]
[335682972,1724425834493,-500.0,0.00010999,2]
[335682973,1724425834502,-500.0,0.00010999,2]
[335682974,1724425834513,-206.01570604,0.00010999,2]
[335682975,1724425834522,-38.38577812,0.00010999,2]
[335682976,1724425834537,-114.43484388,0.00010999,2]
[335682977,1724425834547,-500.0,0.00010999,2]
[335682978,1724425834557,-221.33406463,0.00010999,2]
[335682979,1724425834569,-247.19341809,0.00010999,2]
[335682980,1724425834579,-500.0,0.00010999,2]
[335682981,1724425834589,-106.97146305,0.00010999,2]
[335682982,1724425834601,-393.02853695,0.00010999,2]
[335682983,1724425834611,-202.60660072,0.00010999,2]
[335682984,1724425834624,-297.39339928,0.00010999,2]
[335682985,1724425834634,-500.0,0.00010999,2]
[335682986,1724425834646,-277.36,0.00010999,2]
[335682987,1724425834656,-57.63382597,0.00010999,2]
[335682988,1724425834668,-360.68431585,0.00010999,2]
[335682989,1724425834679,-81.68185818,0.00010999,2]
[335682990,1724425834689,-500.0,0.00010999,2]
[335682991,1724425834699,-500.0,0.00010999,2]
[335682992,1724425834708,-500.0,0.00010999,2]
[335682993,1724425834718,-500.0,0.00010999,2]
[335682994,1724425834728,-500.0,0.00010999,2]
[335682995,1724425834738,-500.0,0.00010999,2]
[335682996,1724425834748,-470.83,0.00010999,2]
[335682997,1724425834757,-500.0,0.00010999,2]
[335682998,1724425834767,-500.0,0.00010999,2]
[335682999,1724425834776,-500.0,0.00010999,2]
[335683000,1724425834786,-500.0,0.00010999,2]
[335683001,1724425834795,-247.5568216,0.00010999,2]
[335683002,1724425834804,-500.0,0.00010999,2]
[335683003,1724425834814,-500.0,0.00010999,2]
[335683004,1724425834824,-500.0,0.00010999,2]
[335683005,1724425834834,-500.0,0.00010999,2]
[335683006,1724425834843,-500.0,0.00010999,2]
[335683007,1724425834853,-500.0,0.00010999,2]
[335683008,1724425834862,-500.0,0.00010999,2]
[335683009,1724425834871,-500.0,0.00010999,2]
[335683010,1724425834880,-500.0,0.00010999,2]
[335683011,1724425834890,-500.0,0.00010999,2]
[335683012,1724425834902,-500.0,0.00010999,2]
[335683013,1724425834911,-500.0,0.00010999,2]
[335683014,1724425834921,-500.0,0.00010999,2]
[335683015,1724425834930,-561.0443002,0.00010999,2]
[335683016,1724425834940,-150.99456627,0.00010999,2]
[335683017,1724425834949,-500.0,0.00010999,2]
[335683018,1724425834959,-500.0,0.00010999,2]
[335683019,1724425834968,-500.0,0.00010999,2]
[335683020,1724425834978,-500.0,0.00010999,2]
[335683021,1724425834987,-500.0,0.00010999,2]
[335683022,1724425834997,-219.0390764,0.00010999,2]
[335683023,1724425835006,-500.0,0.00010999,2]
[335683024,1724425835016,-604.16,0.00010999,2]
[335683025,1724425835025,-598.7305,0.00010999,2]
[335683026,1724425835034,-552.0,0.00010999,2]
[335683027,1724425835044,-22522.85606455,0.00011,2]
[335683028,1724425835055,-497.48514,0.00011,2]
[335683047,1724425838397,-267.08747706,0.000109,2]
[335683048,1724425838407,-9483.91252294,0.00011,2]
[335683049,1724425838418,-523.24184199,0.00011,2]
[335683050,1724425838429,-12217.59754829,0.00011,2]
[335683051,1724425838474,-1264.43557993,0.00011,2]
[335683052,1724425838644,-929409.87172821,0.00011,2]
[335683053,1724425838691,-2644.17619719,0.00011,2]
[335683196,1724425840452,-265.24,0.000109,2]
[335683205,1724425840536,-293.6526263,0.000109,2]
[335683207,1724425840545,-1220.35196618,0.00011,2]
[335683209,1724425840557,-29872.41132061,0.00011,2]
[335683216,1724425840607,-435.92970156,0.00011,2]
[335683233,1724425840779,-5859.46811615,0.00011,2]
[335683254,1724425843425,-548.41931382,0.00011,2]
[335683258,1724425843604,-208245.89467416,0.00011,2]
[335683259,1724425843617,-237289.78030261,0.00011,2]
[335683260,1724425843629,-1956094.94599523,0.00011,2]
[335683261,1724425843642,-642.70249532,0.00011,2]
[335683262,1724425843666,-29812.57360434,0.00011,2]
[335683263,1724425843679,-1109.25964547,0.00011,2]
[335683264,1724425843756,-19674.58928211,0.00011,2]
[335683265,1724425843770,-495.13548268,0.00011,2]
[335683266,1724425843806,-382.92113158,0.00011,2]
[335683267,1724425843968,-852.50000011,0.00011,2]
[335683268,1724425843980,-1503.0,0.00011,2]
[335683269,1724425843993,-6206.83536634,0.00011,2]
[335683270,1724425844005,-603.56506181,0.00011,2]
[335683289,1724425845579,331.46544404,0.00027,120]
[335683301,1724425846346,-302.38629467,0.000109,2]
[335683302,1724425846356,-2626.80345954,0.00011,2]
[335683303,1724425846370,-1208.0,0.00011,2]
[335683305,1724425846383,-34665.0926168,0.00011,2]
[335683306,1724425846395,-335.30570427,0.00011,2]
[335683307,1724425846412,-5495.08541611,0.00011,2]
[335683308,1724425846424,-983.5,0.00011,2]
[335683309,1724425846463,-677.57587675,0.00011,2]
[335683310,1724425846518,-361.55571279,0.00011,2]
[335683311,1724425846531,-286135.81117556,0.00011,2]
[335683312,1724425846573,-11873.24394749,0.00011,2]
[335683313,1724425846585,-4042.87695368,0.00011,2]
[335683314,1724425846598,-1451.35203712,0.00011,2]
[335683315,1724425846612,-692.17038355,0.00011,2]
[335683316,1724425846628,-294.73,0.00011,2]
[335683317,1724425846641,-12746.61163913,0.00011,2]
[335683321,1724425876603,2000.0,8.22e-05,2]
[335683322,1724425878224,2000.0,9.59e-05,2]
[335683323,1724425889092,331.46544404,0.00027,120]
[335683324,1724425909127,1800.0,8.22e-05,2]
[335683325,1724425910743,1800.0,9.59e-05,2]
[335683326,1724425935083,442.73116855,0.00027,120]
[335683327,1724425941519,1424.08680279,0.00027,120]
[335683328,1724425985314,9028.9895,9.914e-05,2]
[335683330,1724426003929,1000.0,0.00027,120]
[335683331,1724426004392,1000.0,0.00027,120]
[335683332,1724426039428,288.919517,0.00027,120]
[335683333,1724426043727,500.0,0.00027,120]
[335683334,1724426069021,200.0,0.00027,120]
[335683335,1724426166937,1000.0,9.99e-05,2]
[335683336,1724426185146,407.91155543,0.00027,120]
[335683337,1724426198124,253.27,9.991e-05,2]
[335683340,1724426343772,1000.0,0.00025,60]
[335683341,1724426346041,215.31,8.219e-05,2]
[335683342,1724426346183,1000.0,0.00025,61]
[335683343,1724426348206,1000.0,0.00025,62]
[335683344,1724426352769,1000.0,0.00025,63]
[335683345,1724426355331,1000.0,0.00025,64]
[335683346,1724426357010,1000.0,0.00025,65]
[335683347,1724426359071,1000.0,0.00025,66]
[335683348,1724426360986,1000.0,0.00025,67]
[335683349,1724426364859,500.0,0.00025,68]
[335683350,1724426456158,3673.30152107,0.0001,2]
[335683351,1724426525214,500.0,0.0001,2]
[335683352,1724426561305,240.14,9.953e-05,2]
[335683353,1724426592579,183.00821368,0.0001,2]
[335683354,1724426605547,1000.0,0.00027,120]
[335683355,1724426605984,1000.0,0.00027,120]
[335683357,1724426633167,500.0,0.0001,2]
[335683358,1724426646860,500.0,0.00027,120]
[335683359,1724426648866,300.0,0.00027,120]
[335683360,1724426665380,308.0,0.00027,120]
[335683361,1724426669691,200.0,0.00027,120]
[335683362,1724426695614,151.1,9.944e-05,2]
[335683363,1724426723454,200.0,9.958e-05,2]
[335683364,1724426724959,645.86,0.00027,120]
[335683365,1724426725805,1005.32725754,0.00025,60]
[335683366,1724426759308,1000.0,0.00025,60]
[335683373,1724426881758,204.54,8.219e-05,2]
[335683374,1724426899239,796.92,9.996e-05,2]
[335683422,1724426973972,2113.62749358,0.00010009,2]
[335683425,1724427004620,159.12026807,0.00010009,2]
[335683426,1724427017706,500.0,0.00010009,2]
[335683452,1724427031679,-549.0,0.00010025,2]
[335683453,1724427031689,-95.4503927,0.00010026,2]
[335683454,1724427031701,-363.76455997,0.00010026,2]
[335683455,1724427031720,-194.97782996,0.00010026,2]
[335683456,1724427031730,-161.06914514,0.00010097,2]
[335683457,1724427031740,-204.54,0.00010472,2]
[335683458,1724427031750,-76.72430215,0.00010505,2]
[335683459,1724427031762,-2428.35742334,0.00010505,2]
[335683460,1724427031772,-93.70874939,0.00010566,2]
[335683461,1724427031784,-3784.11084217,0.00010566,2]
[335683462,1724427031794,-3600.81472367,0.00010566,2]
[335683463,1724427031805,-1198.87858326,0.00010566,2]
[335683464,1724427031815,-1247.04511089,0.00010699,2]
[335683465,1724427031825,-960.11021318,0.00010699,2]
[335683466,1724427031836,-4974.64606485,0.00010699,2]
[335683467,1724427031845,-300.0,0.00010711,2]
[335683468,1724427031855,-98.72291211,0.00010711,2]
[335683469,1724427031866,-201.27708789,0.00010711,2]
[335683470,1724427031875,-260.2016,0.00010796,2]
[335683471,1724427031884,-283.6688,0.00010796,2]
[335683472,1724427031893,-554.18579611,0.00010796,2]
[335683473,1724427031905,-784.34351086,0.00010796,2]
[335683474,1724427031917,-966.21666469,0.00010796,2]
[335683475,1724427031928,-741.8811006,0.00010796,2]
[335683476,1724427031939,-5191.04292774,0.00010796,2]
[335683477,1724427031949,-798.78426727,0.00010799,2]
[335683478,1724427031959,-150.0,0.00010799,2]
[335683479,1724427031968,-723.76100526,0.00010799,2]
[335683480,1724427031977,-12314.42324481,0.000108,2]
[335683481,1724427031987,-68350.923983,0.000108,2]
[335683482,1724427031996,-365.2936023,0.00010888,2]
[335683484,1724427032005,-499.99,0.0001089,2]
[335683486,1724427032015,-3651.37,0.0001089,2]
[335683488,1724427032025,-2668.28,0.0001089,2]
[335683490,1724427032034,-5804.96287726,0.0001089,2]
[335683491,1724427032043,-568.04653,0.0001089,2]
[335683492,1724427032053,-192.4963646,0.0001089,2]
[335683493,1724427032063,-1142.1350924,0.0001089,2]
[335683494,1724427032074,-283.4015921,0.0001089,2]
[335683495,1724427032084,-2166.63299806,0.0001089,2]
[335683496,1724427032093,-289.683,0.0001089,2]
[335683497,1724427032103,-4219.58444282,0.00010896,2]
[335683498,1724427032118,-672.3424,0.00010896,2]
[335683499,1724427032130,-502.7028,0.00010896,2]
[335683500,1724427032146,-1367.57781629,0.00010896,2]
[335683501,1724427032157,-3372.40061193,0.00010896,2]
[335683502,1724427032168,-9978.66962938,0.00010896,2]
[335683503,1724427032705,500.0,0.00010009,2]
[335683507,1724427037532,-1446.7,0.00010471,2]
[335683508,1724427037544,-1058.38172549,0.00010471,2]
[335683509,1724427037553,-1077.564,0.0001089,2]
[335683510,1724427037562,-527.95427451,0.00010896,2]
[335683511,1724427037574,-9838.70787335,0.00010896,2]
[335683512,1724427037666,-918.803945,0.00010896,2]
[335683513,1724427037677,-250.485,0.00010896,2]
[335683514,1724427037689,-20545.10669999,0.00010896,2]
[335683515,1724427037702,-24170.32250673,0.00010896,2]
[335683516,1724427037711,-373.1998,0.00010896,2]
[335683517,1724427037721,-5284.2917,0.00010896,2]
[335683518,1724427037731,-150.99,0.00010896,2]
[335683519,1724427037740,-6411.78,0.00010897,2]
[335683520,1724427037749,-4399.7388,0.00010897,2]
[335683521,1724427037759,-169.9803,0.00010897,2]
[335683522,1724427037768,-22601.4699,0.00010897,2]
[335683523,1724427037778,-30610.5293,0.00010897,2]
[335683524,1724427037787,-302.38629464,0.00010897,2]
[335683525,1724427037797,-21500.32242788,0.00010899,2]
[335683526,1724427037806,-155.0,0.00010899,2]
[335683527,1724427037815,-221.79115753,0.00010899,2]
[335683528,1724427037825,-529.94651814,0.00010899,2]
[335683529,1724427037835,-158.56744269,0.000109,2]
[335683530,1724427037845,-1000.0,0.000109,2]
[335683531,1724427037854,-1000.0,0.000109,2]
[335683532,1724427037863,-1000.0,0.000109,2]
[335683533,1724427037880,-1000.0,0.000109,2]
[335683534,1724427037889,-1000.0,0.000109,2]
[335683535,1724427037899,-2742.45493661,0.000109,2]
[335683536,1724427037908,-172.46467046,0.000109,2]
[335683537,1724427037917,-168.26330186,0.000109,2]
[335683538,1724427037926,-500.0,0.00010912,2]
[335683539,1724427037935,-200.0,0.00010959,2]
[335683540,1724427037945,-500.0,0.00010959,2]
[335683542,1724427037954,-500.0,0.00010959,2]
[335683544,1724427037963,-500.0,0.00010959,2]
[335683545,1724427037972,-500.0,0.00010959,2]
[335683547,1724427037981,-500.0,0.00010959,2]
[335683549,1724427037990,-2000.0,0.0001096,2]
[335683552,1724427038000,-1800.0,0.0001096,2]
[335683555,1724427038009,-764.0,0.0001099,2]
[335683557,1724427038018,-1674.801,0.0001099,2]
[335683559,1724427038027,-21824.76,0.0001099,2]
[335683561,1724427038037,-5847.0,0.0001099,2]
[335683563,1724427038046,-979.619,0.0001099,2]
[335683565,1724427038055,-1000.0,0.00010995,2]
[335683567,1724427038065,-1000.0,0.00010995,2]
[335683569,1724427038074,-1000.0,0.00010995,2]
[335683571,1724427038083,-1000.0,0.00010995,2]
[335683573,1724427038092,-1000.0,0.00010995,2]
[335683575,1724427038102,-1000.0,0.00010995,2]
[335683577,1724427038111,-1000.0,0.00010995,2]
[335683579,1724427038120,-1000.0,0.00010995,2]
[335683581,1724427038129,-1000.0,0.00010995,2]
[335683583,1724427038138,-500.0,0.00010995,2]
[335683585,1724427038147,-500.0,0.00010995,2]
[335683587,1724427038157,-500.0,0.00010995,2]
[335683589,1724427038166,-548.68,0.00010995,2]
[335683591,1724427038175,-87885.36938125,0.00010996,2]
[335683593,1724427038184,-13281.5678715,0.00010997,2]
[335683595,1724427038194,-1549.1393177,0.00010997,2]
[335683597,1724427038203,-4982.169576,0.00010997,2]
[335683599,1724427038212,-5291.44369515,0.00010997,2]
[335683601,1724427038221,-503.11829458,0.00010998,2]
[335683603,1724427038231,-503.66091524,0.00010998,2]
[335683604,1724427038240,-510.26378995,0.00010998,2]
[335683606,1724427038250,-500.0,0.00010998,2]
[335683608,1724427038259,-500.0,0.00010998,2]
[335683610,1724427038268,-470.36680061,0.00010998,2]
[335683612,1724427038278,-500.0,0.00010998,2]
[335683615,1724427038289,-464.79,0.00010998,2]
[335683617,1724427038298,-500.0,0.00010998,2]
[335683618,1724427038307,-547.64,0.00010998,2]
[335683620,1724427038316,-477.25,0.00010998,2]
[335683622,1724427038325,-500.0,0.00010998,2]
[335683624,1724427038333,-500.0,0.00010998,2]
[335683626,1724427038343,-500.0,0.00010998,2]
[335683628,1724427038352,-500.0,0.00010998,2]
[335683630,1724427038362,-500.0,0.00010998,2]
[335683632,1724427038371,-1468.30408573,0.00010999,3]
[335683634,1724427038380,-200.20907633,0.00010999,3]
[335683636,1724427038390,-1468.30408573,0.00010999,3]
[335683638,1724427038399,-592.24,0.00010999,2]
[335683640,1724427038409,-500.0,0.00010999,2]
[335683642,1724427038419,-500.0,0.00010999,2]
[335683644,1724427038428,-500.0,0.00010999,2]
[335683646,1724427038438,-500.0,0.00010999,2]
[335683648,1724427038447,-500.0,0.00010999,2]
[335683650,1724427038457,-500.0,0.00010999,2]
[335683652,1724427038466,-500.0,0.00010999,2]
[335683654,1724427038476,-500.0,0.00010999,2]
[335683656,1724427038486,-500.0,0.00010999,2]
[335683658,1724427038495,-500.0,0.00010999,2]
[335683660,1724427038505,-500.0,0.00010999,2]
[335683662,1724427038515,-500.0,0.00010999,2]
[335683664,1724427038524,-500.0,0.00010999,2]
[335683666,1724427038534,-500.0,0.00010999,2]
[335683668,1724427038543,-430.9,0.00010999,2]
[335683670,1724427038553,-1000.0,0.00010999,2]
[335683672,1724427038562,-500.0,0.00010999,2]
[335683674,1724427038571,-500.0,0.00010999,2]
[335683676,1724427038581,-441.04,0.00010999,2]
[335683678,1724427038590,-500.0,0.00010999,2]
[335683680,1724427038600,-500.0,0.00010999,2]
[335683682,1724427038609,-500.0,0.00010999,2]
[335683684,1724427038628,-500.0,0.00010999,2]
[335683686,1724427038637,-500.0,0.00010999,2]
[335683688,1724427038647,-500.0,0.00010999,2]
[335683689,1724427038657,-500.0,0.00010999,2]
[335683691,1724427038666,-500.0,0.00010999,2]
[335683693,1724427038676,-211.49,0.00010999,2]
[335683713,1724427038860,-530.23,0.00010999,2]
[335683715,1724427038870,-500.0,0.00010999,2]
[335683716,1724427038879,-500.0,0.00010999,2]
[335683718,1724427038889,-500.0,0.00010999,2]
[335683720,1724427038899,-500.0,0.00010999,2]
[335683722,1724427038908,-500.0,0.00010999,2]
[335683724,1724427038919,-500.0,0.00010999,2]
[335683726,1724427038930,-500.0,0.00010999,2]